[Event "Titled Tuesday Blitz August 09 Early 2022"]
[White "Kostina, Nadezhda"]
[Black "Vovk, Orest"]
[WhiteFideId "4195876"]
[BlackFideId "14113490"]
[WhiteElo "1980"]
[BlackElo "2203"]
[Result "0-1"]
[Round "03"]
[TimeControl "180+1"]
[Date "2022.08.09"]
[WhiteClock "0:00:03"]
[BlackClock "0:00:59"]

1. e4 {[%clk 0:03:00]}  g5 {[%clk 0:02:37]} 2. d4 {[%clk 0:02:57]}  h6 {[%clk 0:02:37]} 3. Bc4 {[%clk 0:02:47]}  Bg7 {[%clk 0:02:37]} 4. h4 {[%clk 0:02:36]}  g4 {[%clk 0:02:33]} 5. Qxg4 {[%clk 0:02:14]}  Bxd4 {[%clk 0:02:33]} 6. Qh5 {[%clk 0:02:06]}  Rh7 {[%clk 0:02:19]} 7. Nf3 {[%clk 0:01:57]}  Nf6 {[%clk 0:02:16]} 8. Qb5 {[%clk 0:01:34]}  Nc6 {[%clk 0:01:59]} 9. c3 {[%clk 0:01:29]}  Bb6 {[%clk 0:01:47]} 10. Bf4 {[%clk 0:01:03]}  Nxe4 {[%clk 0:01:42]} 11. Qf5 {[%clk 0:00:53]}  Nf6 {[%clk 0:01:35]} 12. Bb3 {[%clk 0:00:37]}  d5 {[%clk 0:01:30]} 13. Qd3 {[%clk 0:00:24]}  Rg7 {[%clk 0:01:20]} 14. g3 {[%clk 0:00:19]}  Ne4 {[%clk 0:01:16]} 15. Be3 {[%clk 0:00:18]}  Bxe3 {[%clk 0:01:12]} 16. Qxe3 {[%clk 0:00:18]}  Rg6 {[%clk 0:01:12]} 17. Nbd2 {[%clk 0:00:17]}  Re6 {[%clk 0:01:12]} 18. O-O-O {[%clk 0:00:16]}  Nxg3 {[%clk 0:01:05]} 19. Qf4 {[%clk 0:00:15]}  Nxh1 {[%clk 0:01:04]} 20. Rxh1 {[%clk 0:00:13]}  Qd6 {[%clk 0:01:03]} 21. Qa4 {[%clk 0:00:11]}  Bd7 {[%clk 0:01:02]} 22. Bc2 {[%clk 0:00:09]}  O-O-O {[%clk 0:01:01]} 23. Bf5 {[%clk 0:00:09]}  Rf6 {[%clk 0:01:00]} 24. Bd3 {[%clk 0:00:09]}  e5 {[%clk 0:00:59]} 25. Ne1 {[%clk 0:00:03]}  Rf4 {[%clk 0:00:59]} 0-1


[Site "https://www.chess.com"]

[Event "Titled Tuesday Blitz August 09 Early 2022"]
[White "Kravtsiv, Martyn"]
[Black "Aldokhin, Ivan"]
[WhiteFideId "14113147"]
[BlackFideId "24115720"]
[WhiteElo "2694"]
[BlackElo "2246"]
[Result "1-0"]
[Round "03"]
[TimeControl "180+1"]
[Date "2022.08.09"]
[WhiteClock "0:00:19"]
[BlackClock "0:00:03"]

1. e4 {[%clk 0:03:00]}  c5 {[%clk 0:02:59]} 2. Nf3 {[%clk 0:03:00]}  e6 {[%clk 0:02:59]} 3. d4 {[%clk 0:03:00]}  cxd4 {[%clk 0:03:00]} 4. Nxd4 {[%clk 0:03:00]}  Nc6 {[%clk 0:03:00]} 5. Nc3 {[%clk 0:02:59]}  Qc7 {[%clk 0:03:00]} 6. Be2 {[%clk 0:02:58]}  a6 {[%clk 0:03:00]} 7. O-O {[%clk 0:02:57]}  Nf6 {[%clk 0:03:01]} 8. Be3 {[%clk 0:02:56]}  Nxd4 {[%clk 0:02:52]} 9. Bxd4 {[%clk 0:02:41]}  d6 {[%clk 0:02:38]} 10. a4 {[%clk 0:02:32]}  Be7 {[%clk 0:02:34]} 11. a5 {[%clk 0:02:24]}  Bd7 {[%clk 0:02:15]} 12. Bb6 {[%clk 0:02:14]}  Qb8 {[%clk 0:02:13]} 13. f4 {[%clk 0:02:08]}  Bc6 {[%clk 0:02:02]} 14. Bf3 {[%clk 0:02:08]}  O-O {[%clk 0:01:59]} 15. Kh1 {[%clk 0:02:04]}  Nd7 {[%clk 0:01:48]} 16. Bf2 {[%clk 0:01:55]}  b5 {[%clk 0:01:41]} 17. axb6 {[%clk 0:01:51]}  Nxb6 {[%clk 0:01:41]} 18. Qe2 {[%clk 0:01:48]}  Qb7 {[%clk 0:01:32]} 19. Bd4 {[%clk 0:01:27]}  a5 {[%clk 0:01:18]} 20. f5 {[%clk 0:01:19]}  e5 {[%clk 0:01:15]} 21. Bf2 {[%clk 0:01:15]}  a4 {[%clk 0:00:49]} 22. Rfd1 {[%clk 0:01:09]}  Rfc8 {[%clk 0:00:45]} 23. Rab1 {[%clk 0:01:07]}  Be8 {[%clk 0:00:40]} 24. h3 {[%clk 0:01:04]}  Nc4 {[%clk 0:00:30]} 25. Nd5 {[%clk 0:01:01]}  Bd8 {[%clk 0:00:26]} 26. b3 {[%clk 0:00:55]}  Na3 {[%clk 0:00:22]} 27. Rb2 {[%clk 0:00:55]}  Nb5 {[%clk 0:00:17]} 28. bxa4 {[%clk 0:00:53]}  Rxa4 {[%clk 0:00:16]} 29. Rdb1 {[%clk 0:00:52]}  Qa6 {[%clk 0:00:07]} 30. Rxb5 {[%clk 0:00:49]}  Bxb5 {[%clk 0:00:05]} 31. Qxb5 {[%clk 0:00:49]}  Qxb5 {[%clk 0:00:03]} 32. Rxb5 {[%clk 0:00:50]}  h6 {[%clk 0:00:03]} 33. c3 {[%clk 0:00:46]}  Ra2 {[%clk 0:00:03]} 34. Be3 {[%clk 0:00:45]}  Bh4 {[%clk 0:00:02]} 35. Kh2 {[%clk 0:00:44]}  Rc2 {[%clk 0:00:02]} 36. Rb7 {[%clk 0:00:43]}  Ra8 {[%clk 0:00:02]} 37. Bh5 {[%clk 0:00:41]}  Rf8 {[%clk 0:00:01]} 38. Bd1 {[%clk 0:00:37]}  Ra2 {[%clk 0:00:01]} 39. Ra7 {[%clk 0:00:23]}  Ra1 {[%clk 0:00:01]} 40. Rxa1 {[%clk 0:00:22]}  Rc8 {[%clk 0:00:02]} 41. Ra7 {[%clk 0:00:20]}  Rf8 {[%clk 0:00:02]} 42. Bh5 {[%clk 0:00:20]}  Re8 {[%clk 0:00:03]} 43. Bxf7+ {[%clk 0:00:19]} 1-0


[Site "https://www.chess.com"]

[Event "Titled Tuesday Blitz August 09 Early 2022"]
[White "Large, Peter G"]
[Black "Al-Tarboush, Ward"]
[WhiteFideId "400866"]
[BlackFideId "7601450"]
[WhiteElo "2064"]
[BlackElo "2234"]
[Result "0-1"]
[Round "03"]
[TimeControl "180+1"]
[Date "2022.08.09"]
[WhiteClock "0:00:06"]
[BlackClock "0:01:56"]

1. Nf3 {[%clk 0:02:59]}  d5 {[%clk 0:02:59]} 2. b3 {[%clk 0:02:59]}  Nf6 {[%clk 0:02:58]} 3. Bb2 {[%clk 0:02:59]}  Bf5 {[%clk 0:02:58]} 4. g3 {[%clk 0:02:57]}  e6 {[%clk 0:02:58]} 5. Bg2 {[%clk 0:02:57]}  Bd6 {[%clk 0:02:59]} 6. d3 {[%clk 0:02:56]}  h6 {[%clk 0:02:58]} 7. Nbd2 {[%clk 0:02:56]}  O-O {[%clk 0:02:58]} 8. O-O {[%clk 0:02:56]}  Nbd7 {[%clk 0:02:57]} 9. a3 {[%clk 0:02:55]}  e5 {[%clk 0:02:56]} 10. c4 {[%clk 0:02:44]}  d4 {[%clk 0:02:55]} 11. b4 {[%clk 0:02:38]}  c5 {[%clk 0:02:52]} 12. Nh4 {[%clk 0:02:32]}  Bh7 {[%clk 0:02:51]} 13. Bxb7 {[%clk 0:02:31]}  Rb8 {[%clk 0:02:51]} 14. Bg2 {[%clk 0:02:31]}  cxb4 {[%clk 0:02:49]} 15. axb4 {[%clk 0:02:31]}  Rxb4 {[%clk 0:02:50]} 16. Ba3 {[%clk 0:02:22]}  Rb6 {[%clk 0:02:50]} 17. Bxd6 {[%clk 0:02:21]}  Rxd6 {[%clk 0:02:50]} 18. Rxa7 {[%clk 0:02:20]}  Nc5 {[%clk 0:02:49]} 19. Ra3 {[%clk 0:02:12]}  Qb6 {[%clk 0:02:44]} 20. Qa1 {[%clk 0:01:54]}  g5 {[%clk 0:02:38]} 21. Nhf3 {[%clk 0:01:54]}  e4 {[%clk 0:02:28]} 22. dxe4 {[%clk 0:01:48]}  Ncxe4 {[%clk 0:02:27]} 23. Nxe4 {[%clk 0:01:45]}  Nxe4 {[%clk 0:02:28]} 24. Ra8 {[%clk 0:00:49]}  Nc3 {[%clk 0:02:24]} 25. Re1 {[%clk 0:00:46]}  Re6 {[%clk 0:02:21]} 26. Rxf8+ {[%clk 0:00:38]}  Kxf8 {[%clk 0:02:22]} 27. e3 {[%clk 0:00:34]}  dxe3 {[%clk 0:02:21]} 28. fxe3 {[%clk 0:00:19]}  Rxe3 {[%clk 0:02:20]} 29. Rxe3 {[%clk 0:00:18]}  Qxe3+ {[%clk 0:02:21]} 30. Kh1 {[%clk 0:00:18]}  Be4 {[%clk 0:02:20]} 31. Ng1 {[%clk 0:00:17]}  Bxg2+ {[%clk 0:02:15]} 32. Kxg2 {[%clk 0:00:18]}  Qe4+ {[%clk 0:02:15]} 33. Kf2 {[%clk 0:00:17]}  Qc2+ {[%clk 0:02:15]} 34. Kf3 {[%clk 0:00:17]}  Qe4+ {[%clk 0:02:09]} 35. Kf2 {[%clk 0:00:16]}  Qd4+ {[%clk 0:02:09]} 36. Kg2 {[%clk 0:00:17]}  Qd2+ {[%clk 0:02:09]} 37. Kh3 {[%clk 0:00:17]}  f5 {[%clk 0:02:00]} 38. Qa8+ {[%clk 0:00:15]}  Kg7 {[%clk 0:02:00]} 39. Qb7+ {[%clk 0:00:15]}  Kg6 {[%clk 0:02:00]} 40. Nf3 {[%clk 0:00:08]}  g4+ {[%clk 0:01:58]} 41. Kh4 {[%clk 0:00:09]}  gxf3 {[%clk 0:01:58]} 42. Qc6+ {[%clk 0:00:09]}  Kf7 {[%clk 0:01:58]} 43. Qc7+ {[%clk 0:00:09]}  Ke6 {[%clk 0:01:58]} 44. Qc8+ {[%clk 0:00:09]}  Ke5 {[%clk 0:01:57]} 45. Qe8+ {[%clk 0:00:08]}  Kd4 {[%clk 0:01:57]} 46. Qd7+ {[%clk 0:00:06]}  Ke3 {[%clk 0:01:57]} 47. Qxf5 {[%clk 0:00:06]}  Qxh2+ {[%clk 0:01:56]} 0-1


[Site "https://www.chess.com"]

[Event "Titled Tuesday Blitz August 09 Early 2022"]
[White "Lebedev, Artem S."]
[Black "Miszler, Levente"]
[WhiteFideId "34272747"]
[BlackFideId "763276"]
[WhiteElo "1699"]
[BlackElo "1966"]
[Result "1-0"]
[Round "03"]
[TimeControl "180+1"]
[Date "2022.08.09"]
[WhiteClock "0:00:08"]
[BlackClock "0:00:10"]

1. e4 {[%clk 0:03:00]}  e6 {[%clk 0:02:57]} 2. d4 {[%clk 0:03:00]}  d5 {[%clk 0:02:56]} 3. Nc3 {[%clk 0:02:51]}  Nf6 {[%clk 0:02:54]} 4. e5 {[%clk 0:02:51]}  Nfd7 {[%clk 0:02:54]} 5. f4 {[%clk 0:02:51]}  c5 {[%clk 0:02:54]} 6. Nf3 {[%clk 0:02:51]}  Nc6 {[%clk 0:02:54]} 7. Be3 {[%clk 0:02:51]}  Qb6 {[%clk 0:02:55]} 8. a3 {[%clk 0:02:41]}  cxd4 {[%clk 0:02:46]} 9. Nxd4 {[%clk 0:02:38]}  Bc5 {[%clk 0:02:41]} 10. Na4 {[%clk 0:02:33]}  Qa5+ {[%clk 0:02:39]} 11. c3 {[%clk 0:02:23]}  Bxd4 {[%clk 0:02:14]} 12. Bxd4 {[%clk 0:02:21]}  Nxd4 {[%clk 0:02:14]} 13. Qxd4 {[%clk 0:02:20]}  O-O {[%clk 0:02:01]} 14. Bd3 {[%clk 0:02:10]}  f6 {[%clk 0:01:58]} 15. O-O {[%clk 0:02:02]}  b5 {[%clk 0:01:44]} 16. Nc5 {[%clk 0:02:01]}  Qb6 {[%clk 0:01:43]} 17. Nxd7 {[%clk 0:01:36]}  Bxd7 {[%clk 0:01:44]} 18. Rae1 {[%clk 0:01:32]}  Qc7 {[%clk 0:01:35]} 19. exf6 {[%clk 0:01:28]}  Rxf6 {[%clk 0:01:36]} 20. Re5 {[%clk 0:01:26]}  Raf8 {[%clk 0:01:34]} 21. g3 {[%clk 0:01:22]}  a5 {[%clk 0:00:59]} 22. Rfe1 {[%clk 0:01:19]}  Qb8 {[%clk 0:00:55]} 23. f5 {[%clk 0:01:08]}  Qd6 {[%clk 0:00:29]} 24. Bc2 {[%clk 0:00:32]}  Kh8 {[%clk 0:00:19]} 25. fxe6 {[%clk 0:00:26]}  Bxe6 {[%clk 0:00:18]} 26. Bb3 {[%clk 0:00:24]}  a4 {[%clk 0:00:06]} 27. Bxd5 {[%clk 0:00:20]}  Bxd5 {[%clk 0:00:07]} 28. Rxd5 {[%clk 0:00:18]}  Qc6 {[%clk 0:00:07]} 29. Rd8 {[%clk 0:00:15]}  h6 {[%clk 0:00:04]} 30. Rxf8+ {[%clk 0:00:13]}  Rxf8 {[%clk 0:00:05]} 31. Rf1 {[%clk 0:00:10]}  Rxf1+ {[%clk 0:00:04]} 32. Kxf1 {[%clk 0:00:11]}  Qh1+ {[%clk 0:00:04]} 33. Qg1 {[%clk 0:00:10]}  Qf3+ {[%clk 0:00:05]} 34. Qf2 {[%clk 0:00:11]}  Qd1+ {[%clk 0:00:04]} 35. Kg2 {[%clk 0:00:11]}  Qd3 {[%clk 0:00:05]} 36. h4 {[%clk 0:00:08]}  Kh7 {[%clk 0:00:05]} 37. Kh2 {[%clk 0:00:08]}  Qe4 {[%clk 0:00:04]} 38. Qd2 {[%clk 0:00:07]}  Qc4 {[%clk 0:00:02]} 39. Kg2 {[%clk 0:00:05]}  Kh8 {[%clk 0:00:03]} 40. Qd8+ {[%clk 0:00:04]}  Kh7 {[%clk 0:00:01]} 41. Qd2 {[%clk 0:00:05]}  Kh8 {[%clk 0:00:02]} 42. Kh3 {[%clk 0:00:05]}  Kh7 {[%clk 0:00:02]} 43. Qf2 {[%clk 0:00:05]}  Kh8 {[%clk 0:00:03]} 44. Qf8+ {[%clk 0:00:05]}  Kh7 {[%clk 0:00:03]} 45. Qf5+ {[%clk 0:00:06]}  Kh8 {[%clk 0:00:03]} 46. Qf2 {[%clk 0:00:06]}  Kh7 {[%clk 0:00:03]} 47. Kh2 {[%clk 0:00:05]}  Kh8 {[%clk 0:00:04]} 48. Qc2 {[%clk 0:00:04]}  Qb3 {[%clk 0:00:05]} 49. Qxb3 {[%clk 0:00:04]}  axb3 {[%clk 0:00:06]} 50. Kg2 {[%clk 0:00:05]}  g5 {[%clk 0:00:06]} 51. Kf3 {[%clk 0:00:05]}  Kg7 {[%clk 0:00:05]} 52. hxg5 {[%clk 0:00:04]}  hxg5 {[%clk 0:00:06]} 53. g4 {[%clk 0:00:04]}  Kf6 {[%clk 0:00:06]} 54. Ke4 {[%clk 0:00:05]}  Ke6 {[%clk 0:00:06]} 55. Kd4 {[%clk 0:00:04]}  Kd6 {[%clk 0:00:07]} 56. c4 {[%clk 0:00:05]}  bxc4 {[%clk 0:00:06]} 57. Kxc4 {[%clk 0:00:06]}  Ke5 {[%clk 0:00:07]} 58. a4 {[%clk 0:00:06]}  Kf4 {[%clk 0:00:07]} 59. a5 {[%clk 0:00:06]}  Kxg4 {[%clk 0:00:08]} 60. a6 {[%clk 0:00:06]}  Kf3 {[%clk 0:00:09]} 61. a7 {[%clk 0:00:07]}  g4 {[%clk 0:00:10]} 62. a8=Q+ {[%clk 0:00:08]} 1-0


[Site "https://www.chess.com"]

[Event "Titled Tuesday Blitz August 09 Early 2022"]
[White "Madaminov, Mukhiddin"]
[Black "Pranav Anand"]
[WhiteFideId "14210703"]
[BlackFideId "46626786"]
[WhiteElo "2672"]
[BlackElo "2852"]
[Result "0-1"]
[Round "03"]
[TimeControl "180+1"]
[Date "2022.08.09"]
[WhiteClock "0:00:03"]
[BlackClock "0:00:25"]

1. e4 {[%clk 0:03:00]}  b6 {[%clk 0:02:59]} 2. d4 {[%clk 0:03:00]}  Bb7 {[%clk 0:03:00]} 3. Nc3 {[%clk 0:03:00]}  g6 {[%clk 0:03:00]} 4. Nf3 {[%clk 0:02:49]}  Bg7 {[%clk 0:03:01]} 5. Bc4 {[%clk 0:02:47]}  e6 {[%clk 0:03:00]} 6. O-O {[%clk 0:02:48]}  d6 {[%clk 0:03:00]} 7. Re1 {[%clk 0:02:48]}  Nd7 {[%clk 0:03:00]} 8. a4 {[%clk 0:02:36]}  a6 {[%clk 0:02:59]} 9. h4 {[%clk 0:02:33]}  h6 {[%clk 0:02:59]} 10. h5 {[%clk 0:02:29]}  g5 {[%clk 0:02:59]} 11. d5 {[%clk 0:02:29]}  e5 {[%clk 0:02:57]} 12. Nh2 {[%clk 0:02:25]}  Ngf6 {[%clk 0:02:55]} 13. Nf1 {[%clk 0:02:25]}  Bc8 {[%clk 0:02:35]} 14. Qe2 {[%clk 0:02:21]}  O-O {[%clk 0:02:31]} 15. Ng3 {[%clk 0:02:20]}  Nb8 {[%clk 0:02:30]} 16. Nd1 {[%clk 0:02:16]}  Bg4 {[%clk 0:02:30]} 17. f3 {[%clk 0:01:50]}  Bxh5 {[%clk 0:02:30]} 18. Nxh5 {[%clk 0:01:50]}  Nxh5 {[%clk 0:02:31]} 19. Ne3 {[%clk 0:01:51]}  Nf4 {[%clk 0:02:20]} 20. Qf1 {[%clk 0:01:49]}  Kh7 {[%clk 0:02:13]} 21. g3 {[%clk 0:01:33]}  Ng6 {[%clk 0:02:12]} 22. Nf5 {[%clk 0:01:33]}  Ne7 {[%clk 0:02:11]} 23. Qh3 {[%clk 0:01:28]}  Nxf5 {[%clk 0:02:09]} 24. Qxf5+ {[%clk 0:01:21]}  Kg8 {[%clk 0:02:09]} 25. Bf1 {[%clk 0:01:13]}  Qd7 {[%clk 0:02:08]} 26. Bh3 {[%clk 0:01:10]}  Qxf5 {[%clk 0:02:07]} 27. Bxf5 {[%clk 0:01:11]}  Rd8 {[%clk 0:02:05]} 28. a5 {[%clk 0:01:01]}  b5 {[%clk 0:02:04]} 29. Ra3 {[%clk 0:00:59]}  c5 {[%clk 0:02:02]} 30. f4 {[%clk 0:00:34]}  gxf4 {[%clk 0:01:58]} 31. gxf4 {[%clk 0:00:35]}  Nd7 {[%clk 0:01:59]} 32. Rg3 {[%clk 0:00:33]}  Kf8 {[%clk 0:01:50]} 33. Rf1 {[%clk 0:00:32]}  exf4 {[%clk 0:01:41]} 34. Bxf4 {[%clk 0:00:33]}  Ne5 {[%clk 0:01:42]} 35. Kh2 {[%clk 0:00:29]}  Bf6 {[%clk 0:01:39]} 36. Bxh6+ {[%clk 0:00:25]}  Ke7 {[%clk 0:01:40]} 37. Kg2 {[%clk 0:00:23]}  Rh8 {[%clk 0:01:39]} 38. Bf4 {[%clk 0:00:22]}  Rag8 {[%clk 0:01:36]} 39. b3 {[%clk 0:00:22]}  Rxg3+ {[%clk 0:01:31]} 40. Bxg3 {[%clk 0:00:23]}  Rg8 {[%clk 0:01:28]} 41. Kh3 {[%clk 0:00:23]}  Ng6 {[%clk 0:01:10]} 42. c4 {[%clk 0:00:09]}  b4 {[%clk 0:00:57]} 43. Rf2 {[%clk 0:00:09]}  Ne5 {[%clk 0:00:56]} 44. Rf1 {[%clk 0:00:08]}  Nd3 {[%clk 0:00:55]} 45. Rf3 {[%clk 0:00:07]}  Ne5 {[%clk 0:00:54]} 46. Rf1 {[%clk 0:00:07]}  Rh8+ {[%clk 0:00:50]} 47. Kg2 {[%clk 0:00:07]}  Bg7 {[%clk 0:00:44]} 48. Bh3 {[%clk 0:00:07]}  Ng6 {[%clk 0:00:39]} 49. Bf5 {[%clk 0:00:07]}  Ne5 {[%clk 0:00:31]} 50. Bf4 {[%clk 0:00:06]}  Nd3 {[%clk 0:00:27]} 51. Bg5+ {[%clk 0:00:06]}  Bf6 {[%clk 0:00:25]} 52. Bxf6+ {[%clk 0:00:05]}  Kxf6 {[%clk 0:00:26]} 53. Bc8+ {[%clk 0:00:05]}  Ke7 {[%clk 0:00:26]} 54. Bxa6 {[%clk 0:00:03]}  Ra8 {[%clk 0:00:26]} 55. Bb5 {[%clk 0:00:02]}  Rxa5 {[%clk 0:00:27]} 56. Ba4 {[%clk 0:00:02]}  Nb2 {[%clk 0:00:26]} 57. Bc6 {[%clk 0:00:02]}  Nd3 {[%clk 0:00:26]} 58. Rf3 {[%clk 0:00:01]}  Ne5 {[%clk 0:00:26]} 59. Rg3 {[%clk 0:00:01]}  Ra2+ {[%clk 0:00:27]} 60. Kh3 {[%clk 0:00:02]}  Ra3 {[%clk 0:00:28]} 61. Ba4 {[%clk 0:00:02]}  Nxc4 {[%clk 0:00:27]} 62. Rg8 {[%clk 0:00:01]}  Ne5 {[%clk 0:00:25]} 63. Re8+ {[%clk 0:00:01]}  Kf6 {[%clk 0:00:26]} 64. Rd8 {[%clk 0:00:02]}  c4 {[%clk 0:00:24]} 65. Rxd6+ {[%clk 0:00:02]}  Ke7 {[%clk 0:00:24]} 66. Rb6 {[%clk 0:00:03]}  c3 {[%clk 0:00:23]} 67. d6+ {[%clk 0:00:03]}  Kf8 {[%clk 0:00:18]} 68. Rb8+ {[%clk 0:00:03]}  Kg7 {[%clk 0:00:18]} 69. Rc8 {[%clk 0:00:02]}  Ra2 {[%clk 0:00:16]} 70. Kg3 {[%clk 0:00:02]}  Rd2 {[%clk 0:00:16]} 71. Kf4 {[%clk 0:00:02]}  Ng6+ {[%clk 0:00:16]} 72. Ke3 {[%clk 0:00:01]}  Rxd6 {[%clk 0:00:17]} 73. Rc4 {[%clk 0:00:02]}  Rb6 {[%clk 0:00:16]} 74. Kd4 {[%clk 0:00:02]}  Kf6 {[%clk 0:00:15]} 75. Kc5 {[%clk 0:00:01]}  Rb8 {[%clk 0:00:16]} 76. Kd6 {[%clk 0:00:02]}  Rd8+ {[%clk 0:00:16]} 77. Kc7 {[%clk 0:00:02]}  Rd2 {[%clk 0:00:13]} 78. Rxb4 {[%clk 0:00:03]}  c2 {[%clk 0:00:14]} 79. Rc4 {[%clk 0:00:03]}  Ne5 {[%clk 0:00:14]} 80. Rc3 {[%clk 0:00:03]}  Nd3 {[%clk 0:00:15]} 81. b4 {[%clk 0:00:03]}  c1=Q {[%clk 0:00:15]} 82. Rxc1 {[%clk 0:00:02]}  Nxc1 {[%clk 0:00:16]} 83. Bc6 {[%clk 0:00:02]}  Nd3 {[%clk 0:00:16]} 84. b5 {[%clk 0:00:03]}  Rc2 {[%clk 0:00:16]} 85. Kd6 {[%clk 0:00:02]}  Ne5 {[%clk 0:00:15]} 86. Bd5 {[%clk 0:00:02]}  Rb2 {[%clk 0:00:16]} 87. Kc5 {[%clk 0:00:01]}  Nd3+ {[%clk 0:00:16]} 88. Kc4 {[%clk 0:00:02]}  Ne5+ {[%clk 0:00:16]} 89. Kc5 {[%clk 0:00:02]}  Ke7 {[%clk 0:00:16]} 90. b6 {[%clk 0:00:02]}  Nd7+ {[%clk 0:00:17]} 91. Kc6 {[%clk 0:00:02]}  Rxb6+ {[%clk 0:00:18]} 92. Kc7 {[%clk 0:00:03]}  Rd6 {[%clk 0:00:18]} 93. Bxf7 {[%clk 0:00:03]}  Rf6 {[%clk 0:00:18]} 94. Bd5 {[%clk 0:00:03]}  Rf4 {[%clk 0:00:18]} 95. Kc6 {[%clk 0:00:03]}  Ne5+ {[%clk 0:00:18]} 96. Kc5 {[%clk 0:00:03]}  Kf6 {[%clk 0:00:19]} 97. Kd6 {[%clk 0:00:04]}  Rf2 {[%clk 0:00:20]} 98. Kc5 {[%clk 0:00:04]}  Rd2 {[%clk 0:00:21]} 99. Kd6 {[%clk 0:00:04]}  Ng4 {[%clk 0:00:21]} 100. Kc5 {[%clk 0:00:04]}  Ke5 {[%clk 0:00:21]} 101. Kc4 {[%clk 0:00:04]}  Ne3+ {[%clk 0:00:22]} 102. Kc3 {[%clk 0:00:05]}  Rd1 {[%clk 0:00:22]} 103. Bc4 {[%clk 0:00:05]}  Rd6 {[%clk 0:00:23]} 104. Bd3 {[%clk 0:00:05]}  Ng4 {[%clk 0:00:23]} 105. Bb1 {[%clk 0:00:04]}  Nf6 {[%clk 0:00:24]} 106. Kc4 {[%clk 0:00:04]}  Nxe4 {[%clk 0:00:25]} 107. Bc2 {[%clk 0:00:04]}  Nd2+ {[%clk 0:00:25]} 108. Kc3 {[%clk 0:00:05]}  Ne4+ {[%clk 0:00:25]} 109. Kc4 {[%clk 0:00:05]}  Rc6+ {[%clk 0:00:26]} 110. Kb3 {[%clk 0:00:04]}  Kd4 {[%clk 0:00:26]} 111. Bd1 {[%clk 0:00:04]}  Rb6+ {[%clk 0:00:26]} 112. Ka4 {[%clk 0:00:02]}  Nc3+ {[%clk 0:00:26]} 113. Ka5 {[%clk 0:00:03]}  Rb2 {[%clk 0:00:26]} 114. Bf3 {[%clk 0:00:03]}  Kc5 {[%clk 0:00:26]} 115. Ka6 {[%clk 0:00:03]}  Rb6+ {[%clk 0:00:25]} 116. Ka7 {[%clk 0:00:03]}  Nb5+ {[%clk 0:00:25]} 117. Ka8 {[%clk 0:00:04]}  Kd6 {[%clk 0:00:25]} 118. Bb7 {[%clk 0:00:03]}  Kc7 {[%clk 0:00:25]} 119. Bc6 {[%clk 0:00:03]}  Rb8# {[%clk 0:00:25]} 0-1


[Site "https://www.chess.com"]

[Event "Titled Tuesday Blitz August 09 Early 2022"]
[White "Makarian, Rudik"]
[Black "Bashirli, Nail"]
[WhiteFideId "44105681"]
[BlackFideId "13406809"]
[WhiteElo "2852"]
[BlackElo "2674"]
[Result "1-0"]
[Round "03"]
[TimeControl "180+1"]
[Date "2022.08.09"]
[WhiteClock "0:00:02"]
[BlackClock "0:00:13"]

1. d4 {[%clk 0:03:00]}  Nf6 {[%clk 0:02:59]} 2. Bg5 {[%clk 0:03:01]}  c5 {[%clk 0:02:58]} 3. d5 {[%clk 0:02:59]}  d6 {[%clk 0:02:57]} 4. Nc3 {[%clk 0:02:57]}  Nbd7 {[%clk 0:02:57]} 5. Nf3 {[%clk 0:02:56]}  g6 {[%clk 0:02:57]} 6. Qd2 {[%clk 0:02:55]}  h6 {[%clk 0:02:56]} 7. Bf4 {[%clk 0:02:53]}  Bg7 {[%clk 0:02:55]} 8. a4 {[%clk 0:02:54]}  a6 {[%clk 0:02:54]} 9. h3 {[%clk 0:02:53]}  Rb8 {[%clk 0:02:52]} 10. e4 {[%clk 0:02:51]}  g5 {[%clk 0:02:41]} 11. Be3 {[%clk 0:02:45]}  O-O {[%clk 0:02:40]} 12. Be2 {[%clk 0:02:34]}  b5 {[%clk 0:02:35]} 13. axb5 {[%clk 0:02:34]}  axb5 {[%clk 0:02:34]} 14. Bxb5 {[%clk 0:01:53]}  Nxe4 {[%clk 0:02:24]} 15. Nxe4 {[%clk 0:01:54]}  Rxb5 {[%clk 0:02:25]} 16. O-O {[%clk 0:01:45]}  Rxb2 {[%clk 0:02:15]} 17. Ng3 {[%clk 0:01:37]}  Nf6 {[%clk 0:01:33]} 18. Qd3 {[%clk 0:01:32]}  Qb6 {[%clk 0:01:31]} 19. Rfe1 {[%clk 0:01:20]}  Qb5 {[%clk 0:01:29]} 20. c4 {[%clk 0:01:03]}  Qb3 {[%clk 0:01:28]} 21. Qf1 {[%clk 0:00:58]}  Bd7 {[%clk 0:01:10]} 22. Ra7 {[%clk 0:00:56]}  Rb8 {[%clk 0:01:05]} 23. Rc1 {[%clk 0:00:21]}  Rb1 {[%clk 0:01:04]} 24. Kh2 {[%clk 0:00:21]}  Rxc1 {[%clk 0:00:56]} 25. Qxc1 {[%clk 0:00:22]}  Rb7 {[%clk 0:00:56]} 26. Ra8+ {[%clk 0:00:22]}  Rb8 {[%clk 0:00:56]} 27. Ra7 {[%clk 0:00:22]}  Qb2 {[%clk 0:00:53]} 28. Qd1 {[%clk 0:00:21]}  g4 {[%clk 0:00:43]} 29. Nh4 {[%clk 0:00:21]}  Qe5 {[%clk 0:00:35]} 30. Rxd7 {[%clk 0:00:17]}  Nxd7 {[%clk 0:00:34]} 31. Qxg4 {[%clk 0:00:17]}  Nf6 {[%clk 0:00:33]} 32. Qf3 {[%clk 0:00:17]}  Rb4 {[%clk 0:00:29]} 33. Qe2 {[%clk 0:00:16]}  Ne4 {[%clk 0:00:27]} 34. Nf5 {[%clk 0:00:09]}  Nxg3 {[%clk 0:00:26]} 35. Nxg3 {[%clk 0:00:10]}  Rb3 {[%clk 0:00:20]} 36. Qg4 {[%clk 0:00:10]}  e6 {[%clk 0:00:20]} 37. Bxh6 {[%clk 0:00:06]}  Qf6 {[%clk 0:00:18]} 38. Bxg7 {[%clk 0:00:04]}  Qxg7 {[%clk 0:00:18]} 39. Qf4 {[%clk 0:00:02]}  Qe5 {[%clk 0:00:18]} 40. Qh4 {[%clk 0:00:02]}  exd5 {[%clk 0:00:15]} 41. cxd5 {[%clk 0:00:03]}  Rb2 {[%clk 0:00:14]} 42. Qg4+ {[%clk 0:00:03]}  Kf8 {[%clk 0:00:15]} 43. Kg1 {[%clk 0:00:03]}  Rb1+ {[%clk 0:00:15]} 44. Kh2 {[%clk 0:00:03]}  Rb8 {[%clk 0:00:15]} 45. h4 {[%clk 0:00:03]}  Qxd5 {[%clk 0:00:15]} 46. Nf5 {[%clk 0:00:03]}  Qe5+ {[%clk 0:00:15]} 47. f4 {[%clk 0:00:02]}  Qf6 {[%clk 0:00:16]} 48. h5 {[%clk 0:00:03]}  c4 {[%clk 0:00:15]} 49. h6 {[%clk 0:00:03]}  c3 {[%clk 0:00:15]} 50. h7 {[%clk 0:00:03]}  Qh8 {[%clk 0:00:15]} 51. Qh5 {[%clk 0:00:02]}  c2 {[%clk 0:00:15]} 52. Qh6+ {[%clk 0:00:03]}  Ke8 {[%clk 0:00:15]} 53. Ng7+ {[%clk 0:00:01]}  Kd7 {[%clk 0:00:15]} 54. Qh3+ {[%clk 0:00:01]}  f5 {[%clk 0:00:14]} 55. Qxf5+ {[%clk 0:00:02]}  Ke7 {[%clk 0:00:13]} 56. Qe6+ {[%clk 0:00:02]}  Kf8 {[%clk 0:00:13]} 57. Qf6# {[%clk 0:00:02]} 1-0


[Site "https://www.chess.com"]